bitfinex/quotes_ETHUSD_20241101
["timestamp","ask_amount","ask_price","bid_price","bid_amount"]
[1730465682198,3.94259,2536.4,2536.1,0.7565]
[1730465683700,1.793337,2536.5,2536.1,0.7565]
[1730465683701,5.735787,2536.5,2536.1,0.7565]
[1730465684196,3.94261,2536.4,2536.1,0.7565]
[1730465684404,1.793337,2536.7,2536.1,1.6286781]
[1730465684605,3.94207,2536.8,2536.4,3.94253]
[1730465684760,7.88415,2536.8,2536.4,3.94253]
[1730465684964,3.94216,2536.7,2536.3,3.94269]
[1730465685202,5.735497,2536.7,2536.3,3.94269]
[1730465685418,1.793337,2536.7,2536.3,3.94269]
[1730465685711,1.793337,2536.7,2536.3,4.412589]
[1730465685871,1.793337,2536.7,2536.3,8.355259]
[1730465686071,1.793337,2536.7,2536.4,3.94252]
[1730465686821,1.793337,2536.7,2536.4,3.94259]
[1730465687403,5.735477,2536.7,2536.3,4.412599]
[1730465688513,5.735477,2536.7,2536.3,3.94268]
[1730465688689,5.735477,2536.7,2536.2,3.94287]
[1730465688874,3.9423,2536.6,2536.2,3.94287]
[1730465689608,1.793337,2536.5,2536.1,4.69947]
[1730465690691,1.793337,2536.5,2536.2,3.94288]
[1730465691186,1.793337,2536.5,2536.1,0.7565]
[1730465691387,3.9423,2536.6,2536.2,3.94282]
[1730465691779,3.9423,2536.6,2536.2,4.02166897]
[1730465692076,3.9423,2536.6,2536.2,3.94282]
[1730465692613,3.94253,2536.5,2536.1,4.69944]
[1730465692822,5.735867,2536.5,2536.1,8.64239]
[1730465693122,5.735867,2536.5,2536.1,4.69944]
[1730465694686,3.94253,2536.5,2536.1,4.69944]
[1730465694888,3.94253,2536.5,2536.1,8.64244]
[1730465695090,3.94253,2536.5,2536.1,4.69944]
[1730465696427,5.735597,2536.7,2536.3,3.94268]
[1730465696428,5.735497,2536.7,2536.3,3.94268]
[1730465696731,3.9425,2536.5,2536.1,4.69948]
[1730465697086,3.9425,2536.5,2536.2,0.07884906]
[1730465697838,4.75088,2536.6,2536.2,0.07884906]
[1730465698029,8.69326,2536.6,2536.2,0.07884906]
[1730465698331,3.94244,2536.5,2536.2,0.07884906]
[1730465699510,4.75088,2536.6,2536.2,0.07884906]
[1730465700419,3.94252,2536.5,2536.2,0.07884906]
[1730465700624,4.75088,2536.6,2536.2,4.02171906]
[1730465700822,3.94245,2536.5,2536.2,0.07884906]
[1730465702152,4.75088,2536.6,2536.2,0.07884906]
[1730465702351,4.75088,2536.6,2536.2,4.02168906]
[1730465703060,8.69325,2536.6,2536.2,4.02168906]
[1730465703632,3.94245,2536.5,2536.2,0.07884906]
[1730465704102,4.75087,2536.6,2536.2,4.02167906]
[1730465704419,8.69324,2536.6,2536.2,4.02167906]
[1730465705260,4.75087,2536.6,2536.2,4.14503733]
[1730465705922,3.94246,2536.5,2536.2,0.07884906]
[1730465706463,7.88498,2536.5,2536.2,0.07884906]
[1730465706622,3.94246,2536.5,2536.1,4.77827913]
[1730465706822,7.8853,2536.4,2536.1,0.7565]
[1730465707054,3.94283,2536.3,2536.0,0.12336039]
[1730465707242,3.94283,2536.3,2535.9,4.73318]
[1730465707441,3.94283,2536.3,2536.0,0.12336609]
[1730465707761,3.94266,2536.4,2536.0,3.94318]
[1730465707986,8.9815913,2536.4,2535.9,4.73318]
[1730465708142,8.9815913,2536.4,2536.0,0.12336567]
[1730465708471,3.94275,2536.3,2535.9,4.73318]
[1730465708671,3.94275,2536.3,2536.0,0.12336574]
[1730465708981,5.0388213,2536.4,2535.9,4.73318]
[1730465709164,5.0388213,2536.4,2536.0,4.06650429]
[1730465709475,5.0388213,2536.4,2536.0,3.94314]
[1730465709653,3.94276,2536.3,2535.9,8.67646]
[1730465709851,5.0388213,2536.4,2536.0,4.06654472]
[1730465710168,5.0388213,2536.4,2536.1,0.12336195]
[1730465710353,3.94262,2536.4,2536.1,0.12336195]
[1730465710545,3.94262,2536.4,2536.0,3.94318]
[1730465710834,3.94262,2536.4,2536.1,0.12335993]
[1730465711040,1.793337,2537.1,2536.2,0.20221696]
[1730465711275,3.51477473,2537.5,2536.3,0.91214921]
[1730465711276,3.94207,2536.8,2536.3,0.91214921]
[1730465711491,3.94207,2536.8,2536.4,3.94254]
[1730465711775,3.94207,2536.8,2536.3,4.73154]
[1730465711776,3.9422,2536.7,2536.3,4.73154]
[1730465712072,3.9422,2536.7,2536.3,5.69756422]
[1730465713345,3.94197,2536.8,2536.4,3.94253]
[1730465713667,5.735167,2536.9,2536.4,3.94248]
[1730465713862,3.94198,2536.8,2536.3,1.67597759]
[1730465714083,3.94198,2536.8,2536.4,3.94259]
[1730465714762,5.735167,2536.9,2536.5,3.94236]
[1730465715281,5.735167,2536.9,2536.4,3.94259]
[1730465715495,3.94203,2536.8,2536.4,3.94259]
[1730465715949,3.94203,2536.8,2536.4,4.89872676]
[1730465717491,3.94203,2536.8,2536.4,4.89865676]
[1730465719470,3.94153,2537.1,2536.7,0.7695]
[1730465719672,3.9411,2537.4,2536.8,5.735267]
[1730465719879,3.00254332,2537.5,2536.9,0.73718926]
[1730465720075,6.489217,2537.9,2537.2,1.793337]
[1730465720310,1.793337,2537.7,2537.3,0.814]
[1730465720612,0.7556,2537.2,2536.6,0.93730994]
[1730465720904,4.69707,2537.2,2536.7,4.02085423]
[1730465721058,3.94151,2537.1,2536.7,4.02085423]
[1730465721258,3.94151,2537.1,2536.7,0.07883423]
[1730465721670,3.94168,2537.0,2536.7,0.07883423]
[1730465722695,3.94152,2537.1,2536.7,4.02089423]
[1730465723121,3.94152,2537.1,2536.7,0.07883423]
[1730465723807,3.94174,2537.0,2536.6,0.814]
[1730465724014,3.94174,2537.0,2536.6,4.75626]
[1730465724180,3.94152,2537.1,2536.6,4.75626]
[1730465724375,3.94162,2537.1,2536.6,1.683861]
[1730465724571,3.94166,2537.0,2536.6,5.626071]
[1730465724805,7.88342,2537.0,2536.6,4.75621]
[1730465724971,3.94166,2537.0,2536.6,4.75621]
[1730465725314,3.94152,2537.1,2536.6,4.75615]
[1730465725811,3.94166,2537.0,2536.6,4.75615]
[1730465726018,3.94175,2537.0,2536.6,0.814]
[1730465726723,3.94185,2536.9,2536.6,0.814]
[1730465727016,3.94175,2537.0,2536.6,0.814]
[1730465727317,3.94175,2537.0,2536.6,4.75627]
[1730465728281,7.88355,2537.0,2536.6,0.814]
[1730465728585,3.94182,2536.9,2536.6,0.814]
[1730465729690,3.94181,2536.9,2536.6,0.814]
[1730465730015,4.5153247,2536.9,2536.6,0.814]
[1730465730315,3.94181,2536.9,2536.6,0.814]
[1730465731684,7.88373,2536.9,2536.6,0.814]
[1730465732017,3.94198,2536.8,2536.6,0.814]
[1730465732201,3.94198,2536.8,2536.4,4.71608]
[1730465733073,3.94183,2536.9,2536.4,4.71608]
[1730465733580,3.94183,2536.9,2536.5,3.94241]
[1730465734201,3.94181,2536.9,2536.4,4.71608]
[1730465734720,3.94181,2536.9,2536.4,4.71602]
[1730465735710,3.94181,2536.9,2536.5,3.94241]
[1730465738719,3.94199,2536.8,2536.4,0.7735]
[1730465738931,3.9423,2536.6,2536.4,0.7735]
[1730465739229,3.94228,2536.6,2536.2,0.7777]
[1730465739379,3.94228,2536.6,2536.2,4.72052]
[1730465739585,4.9918617,2536.6,2536.2,4.72052]
[1730465739780,4.9918617,2536.6,2536.2,0.7777]
[1730465740180,1.0495817,2536.6,2536.2,4.7206]
[1730465740377,4.9918717,2536.6,2536.2,4.7206]
[1730465741784,4.9918717,2536.6,2536.2,0.7777]
[1730465742127,1.07273387,2536.5,2536.2,0.7777]
[1730465742285,5.01526387,2536.5,2536.2,0.7777]
[1730465742484,1.07273387,2536.5,2536.2,4.7206]
[1730465742784,3.94229,2536.6,2536.2,4.7206]
[1730465742985,3.94229,2536.6,2536.2,0.7777]
[1730465743207,3.94258,2536.5,2536.0,4.77]
[1730465743395,3.94252,2536.5,2536.0,4.76993]
[1730465743724,0.394252,2536.4,2536.0,4.76988]
[1730465744197,0.394252,2536.4,2536.0,8.71303]
[1730465744382,0.394252,2536.4,2536.0,4.76988]
[1730465744581,4.336852,2536.4,2536.0,4.76988]
[1730465747390,3.94278,2536.3,2536.0,0.8268]
[1730465747614,0.394252,2536.4,2536.0,0.8268]
[1730465747917,5.735777,2536.5,2536.0,0.8268]
[1730465748416,3.94266,2536.4,2536.0,4.77]
[1730465748631,5.735777,2536.5,2536.1,3.94305]
[1730465748999,3.9426,2536.4,2536.0,4.84886605]
[1730465749202,4.9104377,2536.4,2536.0,4.84886605]
[1730465750218,4.9104377,2536.4,2536.0,0.90565605]
[1730465750632,3.94275,2536.3,2536.0,0.90565605]
[1730465751126,4.9104377,2536.4,2536.0,0.90565605]
[1730465751422,4.9104377,2536.4,2536.0,4.84876605]
[1730465751992,4.9104377,2536.4,2536.0,0.90565605]
[1730465752193,4.61312747,2536.3,2536.0,0.90565605]
[1730465752952,4.61312747,2536.3,2536.0,0.8268]
[1730465754655,6.40646447,2536.3,2536.0,0.8268]
[1730465755012,6.40646447,2536.3,2536.0,4.76992]
[1730465755013,0.67037747,2536.3,2536.0,4.76992]
[1730465755648,5.735997,2536.4,2536.0,4.76992]
[1730465756007,1.793337,2536.3,2536.0,4.76992]
[1730465756821,1.793337,2536.2,2536.0,4.76992]
[1730465757037,1.793337,2536.3,2536.0,4.76992]
[1730465760965,1.793337,2536.3,2536.1,3.94304]
[1730465761463,1.793337,2536.3,2536.0,4.76999]
[1730465761629,2.7611777,2536.3,2536.0,4.76999]
[1730465762627,1.793337,2536.2,2536.0,4.76999]
[1730465763027,2.7611777,2536.3,2536.0,4.76999]
[1730465763572,1.793337,2536.2,2536.0,0.8268]
[1730465763769,1.793337,2536.2,2536.0,4.77]
[1730465764756,1.793337,2536.1,2536.0,3.94321]
[1730465764959,1.793337,2536.2,2536.0,3.94321]
[1730465765129,1.793337,2536.1,2536.0,3.94321]
[1730465765325,1.793337,2536.1,2535.8,0.8138]
[1730465765526,1.793337,2536.1,2535.9,3.94335]
[1730465767734,1.793337,2536.2,2535.9,3.94328]
[1730465767931,1.793337,2536.3,2535.9,3.94328]
[1730465768135,1.793337,2536.3,2535.9,3.94327]
[1730465768359,5.736087,2536.3,2535.9,3.94327]
[1730465769077,9.678917,2536.3,2535.9,3.94327]
[1730465769380,5.736087,2536.3,2535.9,3.94327]
[1730465769546,9.678947,2536.3,2535.9,3.94327]
[1730465770035,10.27818146,2536.3,2535.9,3.94327]
[1730465771368,3.94293,2536.2,2535.8,4.75732]
[1730465771736,6.33538146,2536.3,2535.8,4.75732]
[1730465772160,10.27826146,2536.3,2535.8,4.75732]
[1730465772472,3.94291,2536.2,2535.8,4.75732]
[1730465773066,5.736147,2536.3,2535.8,4.75732]
[1730465773230,10.31255515,2536.3,2535.8,4.75732]
[1730465773926,3.94293,2536.2,2535.8,4.75732]
[1730465774334,9.679027,2536.3,2535.8,4.75721]
[1730465774528,6.7040497,2536.3,2535.8,8.70066]
[1730465774740,9.679007,2536.3,2535.8,4.75721]
[1730465774970,5.736147,2536.3,2535.8,4.75721]
[1730465775170,9.679037,2536.3,2535.8,4.75721]
[1730465775558,3.94293,2536.2,2535.8,4.75721]
[1730465776192,3.94293,2536.2,2535.8,8.70064]
[1730465776567,3.94293,2536.2,2535.8,4.75721]
[1730465777455,1.793337,2535.9,2535.5,0.7542]
[1730465777656,3.94383,2535.6,2535.2,0.7542]
[1730465777855,1.793337,2535.3,2535.2,0.7542]
[1730465778095,7.033866,2535.3,2535.2,0.7542]
[1730465778314,4.29524421,2535.3,2534.8,0.8121]
[1730465778461,1.793337,2534.9,2534.8,0.8121]
[1730465778660,1.793337,2534.9,2534.6,0.7509]
[1730465778661,3.94524,2534.7,2534.6,0.7509]
[1730465778885,3.94547,2534.6,2534.3,0.7509]
[1730465779089,1.793337,2534.4,2534.3,0.7509]
[1730465779979,3.94586,2534.3,2534.2,0.1246699]
[1730465780182,5.739197,2534.3,2534.2,0.1246699]
[1730465780705,7.59558107,2534.3,2534.2,0.1246699]
[1730465780899,8.83036918,2534.3,2534.2,0.1246699]
[1730465781607,12.63656918,2534.3,2534.2,0.1246699]
[1730465782259,12.63656918,2534.3,2533.8,0.0008]
[1730465782260,3.94648,2533.9,2533.8,0.0008]
[1730465782478,11.41500107,2533.9,2533.8,0.0008]
[1730465784287,3.94648,2533.9,2533.8,0.0008]
[1730465787013,5.10073411,2533.9,2533.8,0.0008]
[1730465787427,5.70454972,2533.9,2533.8,0.0008]
[1730465788891,5.93223411,2533.9,2533.8,0.0008]
[1730465790966,6.51663305,2533.9,2533.8,0.0008]
[1730465791290,9.51663305,2533.9,2533.8,0.0008]
[1730465791860,10.16930873,2533.9,2533.8,0.0008]
[1730465796168,9.33780873,2533.9,2533.8,0.0008]
[1730465798674,3.94696,2533.6,2533.4,0.80006652]
[1730465799394,7.89401,2533.6,2533.4,0.80006652]
[1730465799597,3.9471,2533.5,2533.4,0.80006652]
[1730465799986,3.94696,2533.6,2533.4,0.80006652]
[1730465800509,3.9471,2533.5,2533.4,0.80006652]
[1730465800676,3.94733,2533.4,2533.0,3.94776]
[1730465801010,3.94726,2533.4,2533.0,3.94776]
[1730465801575,3.94726,2533.4,2533.1,0.8248]
[1730465802082,3.94703,2533.6,2533.1,4.77251]
[1730465802284,3.64972107,2533.8,2533.1,0.8248]
[1730465802285,3.94711,2533.5,2533.1,0.8248]
[1730465802471,5.24558498,2533.7,2533.1,0.8248]
[1730465802678,3.94743,2533.3,2533.1,0.8248]
[1730465802884,3.94757,2533.2,2533.1,0.8248]
[1730465803300,3.94744,2533.3,2532.9,0.82959366]
[1730465803679,3.94765,2533.2,2532.9,0.82959366]
[1730465804200,3.94744,2533.3,2532.9,0.82959366]
[1730465804518,7.895,2533.3,2532.9,0.82959366]
[1730465804679,3.94744,2533.3,2532.9,0.82959366]
[1730465805014,3.94758,2533.2,2532.9,0.82959366]
[1730465805315,3.94764,2533.2,2532.9,0.82959366]
[1730465805733,3.94774,2533.1,2532.9,0.82959366]
[1730465806028,7.89561,2533.1,2532.9,0.82959366]
[1730465806236,3.94774,2533.1,2532.9,0.82959366]
[1730465806805,7.8956,2533.1,2532.9,0.82959366]
[1730465807004,3.94774,2533.1,2532.9,0.82959366]
[1730465807500,3.94788,2533.0,2532.9,0.82959366]
[1730465807923,3.94787,2533.1,2532.9,0.82959366]
[1730465808503,7.89574,2533.1,2532.9,0.82959366]
[1730465808697,3.94787,2533.1,2532.9,0.82959366]
[1730465810092,7.89572,2533.1,2532.9,0.82959366]
[1730465810299,3.94785,2533.1,2532.9,0.82959366]
[1730465810642,3.94784,2533.1,2532.9,0.82959366]
[1730465810794,7.89568,2533.1,2532.9,0.82959366]
[1730465810997,3.94788,2533.0,2532.9,0.82959366]
[1730465811438,3.94783,2533.1,2532.9,0.82959366]
[1730465811804,1.23707462,2533.5,2532.9,0.82959366]
[1730465812136,3.94728,2533.4,2532.9,4.77750366]
[1730465812326,3.94728,2533.4,2532.9,8.72543366]
[1730465812522,3.94728,2533.4,2532.9,4.77750366]
[1730465812699,3.94742,2533.3,2532.9,0.82959366]
[1730465812899,3.9476,2533.2,2532.9,0.82959366]
[1730465813131,3.94742,2533.3,2532.9,4.77762366]
[1730465813777,3.94742,2533.3,2532.9,8.72557366]
[1730465814082,3.94742,2533.3,2532.9,5.65018103]
[1730465814241,3.94742,2533.3,2532.9,4.77754366]
[1730465814563,7.89493,2533.3,2532.9,0.82959366]
[1730465814767,3.94742,2533.3,2532.9,4.77760366]
[1730465814979,3.94758,2533.2,2532.9,0.82959366]
[1730465815331,3.94743,2533.3,2532.9,4.77763366]
[1730465816805,3.94758,2533.2,2532.9,0.82959366]
[1730465818973,7.89525,2533.2,2532.9,0.82959366]
[1730465819130,3.94758,2533.2,2532.9,0.82959366]
[1730465819537,3.94776,2533.1,2532.9,0.82959366]
[1730465820994,7.89562,2533.1,2532.9,0.82959366]
[1730465821298,3.94776,2533.1,2532.9,0.82959366]
[1730465822808,3.94759,2533.2,2532.9,0.82959366]
[1730465822957,3.94774,2533.1,2532.9,0.7704]
[1730465823586,3.94788,2533.0,2532.7,0.7952]
[1730465824397,3.94807,2532.9,2532.7,0.7952]
[1730465825252,3.94819,2532.8,2532.7,0.7952]
[1730465825554,7.59791107,2532.8,2532.7,0.0008]
[1730465827893,3.94819,2532.8,2532.7,0.0008]
[1730465830281,4.75489,2532.8,2532.7,0.0008]
[1730465830619,6.06911761,2532.8,2532.7,0.0008]
[1730465830783,9.71883868,2532.8,2532.7,0.0008]
[1730465831847,6.06911761,2532.8,2532.7,0.0008]
[1730465832423,3.94819,2532.8,2532.7,0.0008]
[1730465832571,3.94807,2532.9,2532.7,0.0008]
[1730465833198,7.89622,2532.9,2532.7,0.0008]
[1730465833366,3.94781,2533.1,2532.7,0.0008]
[1730465833571,3.94795,2533.0,2532.7,0.0008]
[1730465834198,4.72542533,2533.1,2532.7,0.0008]
[1730465835117,3.94795,2533.0,2532.7,0.0008]
[1730465835628,3.94781,2533.1,2532.8,0.8112]
[1730465836185,3.00254332,2533.2,2532.8,0.8112]
[1730465836415,6.95012332,2533.2,2532.8,4.75933]
[1730465836922,6.95012332,2533.2,2532.8,0.8112]
[1730465837138,3.94773,2533.1,2532.8,0.8112]
[1730465839021,3.94791,2533.0,2532.8,0.8112]
[1730465839229,3.94811,2532.9,2532.7,0.0008]
[1730465839524,3.94819,2532.8,2532.7,0.0008]
[1730465839826,3.94811,2532.9,2532.7,0.0008]
[1730465839993,7.89624,2532.9,2532.7,0.0008]
[1730465840195,3.94819,2532.8,2532.7,0.0008]
[1730465840719,4.88821853,2532.9,2532.7,0.0008]
[1730465840720,0.94010853,2532.9,2532.7,0.0008]
[1730465840884,3.94807,2532.9,2532.7,0.0008]
[1730465841085,3.00254332,2533.2,2532.7,0.0008]
[1730465841433,3.00254332,2533.2,2532.8,3.94817]
[1730465841434,3.94762,2533.2,2532.8,3.94817]
[1730465841600,3.94813,2532.9,2532.7,0.0008]
[1730465841922,3.94796,2533.0,2532.7,0.0008]
[1730465842927,3.94719,2533.5,2533.0,3.94777]
[1730465843127,3.94693,2533.7,2533.3,3.94733]
[1730465843339,3.94693,2533.7,2533.4,0.8139]
[1730465844032,7.89377,2533.7,2533.4,0.8139]
[1730465844353,7.89379,2533.7,2533.4,0.8139]
[1730465844526,3.94688,2533.7,2533.4,0.8139]
[1730465844693,3.94695,2533.6,2533.4,0.8139]
[1730465845234,3.9471,2533.5,2533.4,0.8139]
[1730465845390,3.94676,2533.8,2533.4,0.8139]
[1730465845589,3.94681,2533.7,2533.4,0.8139]
[1730465846137,4.72542,2534.0,2533.5,3.94702]
[1730465846293,3.94657,2533.9,2533.5,3.94702]
[1730465846489,3.94657,2533.9,2533.4,4.76114]
[1730465846790,4.5249728,2534.3,2533.4,4.76114]
[1730465846791,0.5791028,2534.3,2533.4,0.870843]
[1730465846991,3.94555,2534.6,2533.9,3.64972107]
[1730465847329,3.94555,2534.6,2534.3,0.8265]
[1730465847537,3.9455,2534.6,2534.3,0.8265]
[1730465847846,4.77214,2534.9,2534.3,0.8265]
[1730465847994,3.94494,2534.9,2534.4,3.94563]
[1730465848200,0.90779515,2534.9,2534.3,0.8265]
[1730465848402,4.85272515,2534.9,2534.4,3.94562]
[1730465849233,5.13293151,2535.1,2534.6,3.94526]
[1730465849544,3.94439,2535.3,2534.8,3.945]
[1730465850197,7.88883,2535.3,2534.8,3.945]
[1730465850395,0.788883,2535.2,2534.7,0.8066]
[1730465850626,3.94497,2534.9,2534.4,0.8311]
[1730465850826,4.55413871,2534.9,2534.4,0.8311]
[1730465851072,3.94519,2534.8,2534.4,0.8311]
[1730465851277,3.94524,2534.7,2534.4,0.8311]
[1730465851422,4.79517787,2534.7,2534.4,0.8311]
[1730465852126,4.79517787,2534.7,2534.3,3.94585]
[1730465852127,0.84993787,2534.7,2534.3,3.94584]
[1730465852627,0.84993787,2534.7,2534.2,4.71031]
[1730465852628,0.84993787,2534.7,2534.4,3.9457]
[1730465852827,3.94509,2534.8,2534.4,3.9457]
[1730465855125,7.89026,2534.8,2534.2,8.65619]
[1730465855371,3.94509,2534.8,2534.2,4.71028]
[1730465855666,4.734083,2534.8,2534.3,3.94586]
[1730465856457,3.94532,2534.7,2534.2,4.71028]
[1730465856929,3.94532,2534.7,2534.3,3.94584]
[1730465857442,4.4187513,2534.7,2534.2,4.71028]
[1730465857767,4.4187513,2534.7,2534.2,4.78919238]
[1730465858180,0.4734313,2534.7,2534.3,3.94574]
[1730465859468,4.734163,2534.8,2534.3,3.94574]
[1730465860962,0.788993,2534.8,2534.3,3.94574]
[1730465861275,4.734083,2534.8,2534.3,3.94574]
[1730465861437,3.94534,2534.7,2534.2,4.7104]
[1730465861636,4.734083,2534.8,2534.3,3.94585]
[1730465861862,8.679273,2534.8,2534.3,3.94585]
[1730465862033,4.734083,2534.8,2534.3,3.94585]
[1730465862361,0.4734083,2534.7,2534.3,3.94585]
[1730465863649,3.94489,2535.0,2534.5,3.94553]
[1730465863868,0.60916871,2535.3,2534.5,3.94553]
[1730465863869,3.94439,2535.3,2534.8,3.94501]
[1730465864386,3.94446,2535.2,2534.7,3.94509]
[1730465864533,3.94464,2535.1,2534.7,3.94509]
[1730465866879,3.94438,2535.3,2534.9,3.94491]
[1730465867663,3.94448,2535.2,2534.7,3.9451]
[1730465868451,3.94468,2535.1,2534.6,0.7551]
[1730465868677,3.94448,2535.2,2534.5,3.94541]
[1730465868678,0.7747,2534.9,2534.5,3.94541]
[1730465869193,3.94477,2535.0,2534.5,3.94541]
[1730465869450,3.94477,2535.0,2534.5,7.89089]
[1730465869596,3.94477,2535.0,2534.5,3.94541]
[1730465869798,3.94477,2535.0,2534.6,3.94537]
[1730465870364,4.71936,2535.1,2534.7,3.94515]
[1730465870783,3.94447,2535.2,2534.7,3.94515]
[1730465870972,3.94447,2535.2,2534.8,4.75121]
[1730465871711,7.88855,2535.4,2534.9,3.94488]
[1730465871889,3.94427,2535.4,2534.9,3.94488]
[1730465872091,3.94422,2535.4,2534.9,3.94488]
[1730465872261,3.94433,2535.3,2534.9,3.94488]
[1730465872659,0.60916871,2535.7,2535.1,3.64972107]
[1730465873000,3.94336,2536.0,2535.5,7.59360107]
[1730465873210,3.94336,2536.0,2535.5,3.94388]
[1730465873423,3.94334,2536.0,2535.4,4.76174]
[1730465873577,3.94368,2535.7,2535.4,0.8177]
[1730465874211,1.18827151,2536.0,2535.4,4.76184]
[1730465874443,1.18827151,2536.0,2535.4,0.8177]
[1730465874611,1.18827151,2536.0,2535.1,0.7962]
[1730465874612,3.94415,2535.4,2535.1,0.7962]
[1730465874918,39.2038,2535.0,2534.9,3.94492]
[1730465875617,39.2038,2535.0,2534.9,7.59464107]
[1730465876490,39.2038,2535.0,2534.9,8.14464107]
[1730465877715,39.2038,2535.0,2534.9,14.79436214]
[1730465877920,39.2038,2535.0,2534.9,11.90584107]
[1730465878076,39.2038,2535.0,2534.9,13.49093318]
[1730465880095,39.2038,2535.0,2534.9,12.94093318]
[1730465882214,39.2038,2535.0,2534.9,9.94093318]
[1730465882418,39.2038,2535.0,2534.9,8.35584107]
[1730465883227,39.2038,2535.0,2534.9,7.59464107]
[1730465885081,39.2038,2535.0,2534.9,12.61156214]
[1730465885225,28.94134085,2535.0,2534.9,15.61156214]
[1730465885424,8.33379018,2535.0,2534.9,15.61156214]
[1730465885979,3.94299,2536.2,2535.7,3.94366]
[1730465886157,3.94299,2536.2,2535.7,7.59338107]
[1730465886525,4.73552,2536.3,2535.9,3.64972107]
[1730465886754,3.94227,2536.7,2536.2,3.94282]
[1730465887071,0.8098,2536.8,2536.6,3.64972107]
[1730465887221,0.5791028,2536.9,2536.4,3.94245]
[1730465887428,0.5791028,2536.9,2536.5,3.94235]
[1730465887931,0.5791028,2536.9,2536.5,3.94242]
[1730465888138,4.5209328,2536.9,2536.4,3.94245]
[1730465888457,0.5791028,2536.9,2536.4,3.94245]
[1730465889967,0.5791028,2536.9,2536.4,3.64972107]
[1730465890175,0.5791028,2536.9,2536.6,4.75815]
[1730465890356,0.5791028,2536.9,2536.7,3.94212]
[1730465890667,3.94146,2537.2,2536.7,3.94212]
[1730465891021,3.94146,2537.2,2536.4,0.37285661]
[1730465891022,0.8008,2537.8,2537.3,3.94116]
[1730465891225,0.8008,2537.8,2537.3,3.94109]
[1730465891483,0.8008,2537.8,2537.3,7.8822]
[1730465891769,4.74126,2537.8,2537.3,3.94109]
[1730465892107,3.94073,2537.6,2536.9,3.9417]
[1730465892400,3.94099,2537.5,2536.9,3.9417]
[1730465892549,5.44898688,2537.5,2536.9,3.9417]
[1730465893193,0.8261,2537.4,2536.8,0.7555]
[1730465893347,3.94152,2537.1,2536.5,4.70826]
[1730465894260,3.94171,2537.0,2536.5,4.70826]
[1730465894462,3.94152,2537.1,2536.5,0.7659]
[1730465894668,4.71482,2536.9,2536.3,8.6872]
[1730465894975,3.94198,2536.8,2536.3,4.74455]
[1730465895188,4.71482,2536.9,2536.4,3.94257]
[1730465895352,3.94213,2536.7,2536.3,0.8019]
[1730465895693,3.94213,2536.7,2536.1,3.943]
[1730465895924,4.413643,2536.7,2536.1,3.943]
[1730465896088,3.94261,2536.4,2536.0,0.8104]
[1730465896292,7.88469,2536.6,2536.0,4.75349]
[1730465896787,3.94244,2536.5,2536.0,4.75349]
[1730465896988,3.94244,2536.5,2536.0,0.8104]
[1730465897375,3.94277,2536.3,2535.7,8.68546]
[1730465897776,3.94277,2536.3,2535.8,3.94345]
[1730465898190,3.9429,2536.2,2535.7,4.74186]
[1730465898575,0.7763,2536.4,2535.7,4.74186]
[1730465898576,4.71898,2536.4,2535.7,4.74186]
[1730465898775,3.94275,2536.3,2535.8,3.9435]
[1730465899247,1.72601563,2536.4,2535.9,3.94337]
[1730465899248,0.7763,2536.4,2535.9,3.94337]
[1730465899370,0.7763,2536.7,2535.9,4.6581457]
[1730465899576,3.94209,2536.8,2536.3,3.94263]
[1730465900129,7.88416,2536.8,2536.2,4.74107]
[1730465900280,3.94213,2536.7,2536.2,4.74107]
[1730465900606,3.94213,2536.7,2536.2,4.81991778]
[1730465901130,0.7763,2537.0,2536.3,3.94267]
[1730465901131,3.9419,2536.9,2536.3,3.94267]
[1730465901305,3.9419,2536.9,2536.4,4.02142177]
[1730465901641,4.7181,2537.0,2536.4,0.07884177]
[1730465901927,3.94181,2536.9,2536.4,4.02141177]
[1730465902126,4.7181,2537.0,2536.4,4.02141177]
[1730465902432,3.94182,2536.9,2536.4,4.02141177]
[1730465902931,8.65987,2537.0,2536.4,4.02141177]
[1730465903129,3.94185,2536.9,2536.4,4.02141177]
[1730465903332,4.71808,2537.0,2536.5,3.94243]
[1730465903894,8.65987,2537.0,2536.4,3.94249]
[1730465904130,8.65987,2537.0,2536.5,0.07884059]
[1730465904347,4.71808,2537.0,2536.4,3.94249]
[1730465904497,4.71808,2537.0,2536.5,3.94243]
[1730465904699,3.94146,2537.2,2536.7,3.94202]
[1730465904993,0.8299,2537.3,2536.7,3.94202]
[1730465905193,0.8299,2537.3,2536.9,3.9418]
[1730465905544,3.94137,2537.2,2536.7,3.94202]
[1730465906022,3.94137,2537.2,2536.6,4.76187]
[1730465906223,3.94176,2537.0,2536.5,3.94234]
[1730465907096,3.94176,2537.0,2536.6,3.94227]
[1730465907602,3.94152,2537.1,2536.6,7.88454]
[1730465907908,3.94112,2537.4,2536.9,4.70391]
[1730465908162,7.88224,2537.4,2536.9,4.70391]
[1730465908301,7.88224,2537.4,2536.9,4.78273862]
[1730465908500,0.8173,2537.5,2537.1,3.94142]
[1730465908701,3.94076,2537.6,2537.2,3.94133]
[1730465909243,4.75798,2537.7,2537.2,3.94133]
[1730465909398,3.94089,2537.5,2537.1,0.47823486]
[1730465909598,3.94089,2537.5,2537.1,3.94146]
[1730465910336,3.94089,2537.5,2536.9,0.7621]
[1730465910337,4.75798,2537.7,2537.2,3.94134]
[1730465910863,4.75798,2537.7,2537.3,3.94119]
[1730465911028,4.75798,2537.7,2537.2,3.94134]
[1730465911719,3.94074,2537.6,2537.2,3.94134]
[1730465913159,7.88157,2537.6,2537.1,3.9415]
[1730465913376,3.94074,2537.6,2537.1,3.9415]
[1730465913666,7.88158,2537.6,2537.1,3.9415]